[Event "Late Titled Tuesday Blitz February 8 2022"]
[White "Bambino Filho, Antonio Carlos"]
[Black "Pesotskiy, Mikhail"]
[WhiteFideId "2113163"]
[BlackFideId "34164453"]
[WhiteElo "2453"]
[BlackElo "2010"]
[Result "1-0"]
[Round "08"]
[TimeControl "180+1"]
[Date "2022.02.09"]
[WhiteClock "0:00:08"]
[BlackClock "0:00:13"]

1. e4 {[%clk 0:02:57]}  e6 {[%clk 0:02:59]} 2. Qe2 {[%clk 0:02:56]}  c5 {[%clk 0:02:59]} 3. b3 {[%clk 0:02:54]}  Nc6 {[%clk 0:03:00]} 4. Bb2 {[%clk 0:02:54]}  Nd4 {[%clk 0:02:47]} 5. Qd1 {[%clk 0:02:54]}  g6 {[%clk 0:02:45]} 6. c3 {[%clk 0:02:53]}  Nc6 {[%clk 0:02:45]} 7. d4 {[%clk 0:02:53]}  cxd4 {[%clk 0:02:42]} 8. cxd4 {[%clk 0:02:54]}  d5 {[%clk 0:02:41]} 9. e5 {[%clk 0:02:48]}  Bg7 {[%clk 0:02:40]} 10. Nf3 {[%clk 0:02:44]}  f6 {[%clk 0:02:40]} 11. Bb5 {[%clk 0:02:39]}  fxe5 {[%clk 0:02:26]} 12. Nxe5 {[%clk 0:02:31]}  Ne7 {[%clk 0:02:24]} 13. Qf3 {[%clk 0:02:18]}  Bxe5 {[%clk 0:01:56]} 14. dxe5 {[%clk 0:02:19]}  Qa5+ {[%clk 0:01:56]} 15. Nc3 {[%clk 0:02:12]}  d4 {[%clk 0:01:57]} 16. Bxc6+ {[%clk 0:01:56]}  Nxc6 {[%clk 0:01:58]} 17. O-O {[%clk 0:01:44]}  dxc3 {[%clk 0:01:56]} 18. Bxc3 {[%clk 0:01:45]}  Qd5 {[%clk 0:01:51]} 19. Qf4 {[%clk 0:01:37]}  Rf8 {[%clk 0:01:51]} 20. Qh6 {[%clk 0:01:33]}  Bd7 {[%clk 0:01:43]} 21. Rad1 {[%clk 0:01:21]}  Qc5 {[%clk 0:01:42]} 22. Qxh7 {[%clk 0:01:17]}  O-O-O {[%clk 0:01:41]} 23. Rc1 {[%clk 0:01:11]}  Rh8 {[%clk 0:01:02]} 24. Qxg6 {[%clk 0:00:56]}  Rdg8 {[%clk 0:01:02]} 25. Qe4 {[%clk 0:00:55]}  Qd5 {[%clk 0:01:00]} 26. Qxd5 {[%clk 0:00:53]}  exd5 {[%clk 0:01:01]} 27. e6 {[%clk 0:00:54]}  Bxe6 {[%clk 0:00:56]} 28. Bxh8 {[%clk 0:00:54]}  Rxh8 {[%clk 0:00:57]} 29. f4 {[%clk 0:00:49]}  Bf5 {[%clk 0:00:56]} 30. h3 {[%clk 0:00:46]}  Be4 {[%clk 0:00:55]} 31. Kh2 {[%clk 0:00:45]}  Kd7 {[%clk 0:00:51]} 32. Rcd1 {[%clk 0:00:39]}  Ke6 {[%clk 0:00:45]} 33. g4 {[%clk 0:00:38]}  d4 {[%clk 0:00:36]} 34. Kg3 {[%clk 0:00:28]}  Kd5 {[%clk 0:00:34]} 35. f5 {[%clk 0:00:27]}  d3 {[%clk 0:00:22]} 36. h4 {[%clk 0:00:26]}  Nd4 {[%clk 0:00:16]} 37. Rf2 {[%clk 0:00:20]}  Ke5 {[%clk 0:00:14]} 38. f6 {[%clk 0:00:19]}  Ne2+ {[%clk 0:00:14]} 39. Kh3 {[%clk 0:00:17]}  Nf4+ {[%clk 0:00:14]} 40. Kg3 {[%clk 0:00:16]}  Ne2+ {[%clk 0:00:14]} 41. Kh3 {[%clk 0:00:15]}  Rf8 {[%clk 0:00:13]} 42. g5 {[%clk 0:00:14]}  Bf5+ {[%clk 0:00:10]} 43. Kg2 {[%clk 0:00:13]}  Rh8 {[%clk 0:00:08]} 44. Rxf5+ {[%clk 0:00:10]}  Kxf5 {[%clk 0:00:08]} 45. Kf3 {[%clk 0:00:08]}  Nf4 {[%clk 0:00:08]} 46. Ke3 {[%clk 0:00:06]}  Rxh4 {[%clk 0:00:07]} 47. Rf1 {[%clk 0:00:07]}  Rh3+ {[%clk 0:00:06]} 48. Kd4 {[%clk 0:00:08]}  Rh4 {[%clk 0:00:05]} 49. f7 {[%clk 0:00:06]}  Kg4 {[%clk 0:00:05]} 50. Rxf4+ {[%clk 0:00:05]}  Kxf4 {[%clk 0:00:06]} 51. f8=Q+ {[%clk 0:00:05]}  Kg3+ {[%clk 0:00:06]} 52. Kxd3 {[%clk 0:00:06]}  Rh3 {[%clk 0:00:07]} 53. Kc4 {[%clk 0:00:06]}  Kg2 {[%clk 0:00:08]} 54. Qf7 {[%clk 0:00:06]}  Rg3 {[%clk 0:00:08]} 55. g6 {[%clk 0:00:06]}  Rg4+ {[%clk 0:00:09]} 56. Kc3 {[%clk 0:00:06]}  Rg3+ {[%clk 0:00:09]} 57. Kb2 {[%clk 0:00:07]}  b5 {[%clk 0:00:10]} 58. g7 {[%clk 0:00:07]}  Rf3 {[%clk 0:00:11]} 59. Qxf3+ {[%clk 0:00:06]}  Kxf3 {[%clk 0:00:11]} 60. g8=Q {[%clk 0:00:07]}  Ke3 {[%clk 0:00:12]} 61. Qb8 {[%clk 0:00:08]}  Kd4 {[%clk 0:00:13]} 62. Qxa7+ {[%clk 0:00:08]} 1-0


[Site "https://www.chess.com"]

[Event "Late Titled Tuesday Blitz February 8 2022"]
[White "Bauer, Thomas"]
[Black "Hess, Robert"]
[WhiteFideId "1639293"]
[BlackFideId "2022036"]
[WhiteElo "2220"]
[BlackElo "2557"]
[Result "1-0"]
[Round "08"]
[TimeControl "180+1"]
[Date "2022.02.09"]
[WhiteClock "0:00:41"]
[BlackClock "0:00:01"]

1. Nf3 {[%clk 0:03:00]}  g6 {[%clk 0:02:59]} 2. e4 {[%clk 0:02:59]}  Bg7 {[%clk 0:02:59]} 3. d4 {[%clk 0:02:58]}  e6 {[%clk 0:02:59]} 4. c3 {[%clk 0:02:58]}  Ne7 {[%clk 0:03:00]} 5. Bd3 {[%clk 0:02:59]}  d6 {[%clk 0:03:00]} 6. O-O {[%clk 0:02:58]}  Nd7 {[%clk 0:03:01]} 7. Bf4 {[%clk 0:02:58]}  h6 {[%clk 0:03:00]} 8. Re1 {[%clk 0:02:57]}  a6 {[%clk 0:02:58]} 9. Nbd2 {[%clk 0:02:56]}  g5 {[%clk 0:02:58]} 10. Bg3 {[%clk 0:02:54]}  b6 {[%clk 0:02:56]} 11. Nc4 {[%clk 0:02:48]}  Bb7 {[%clk 0:02:53]} 12. Bxd6 {[%clk 0:02:41]}  cxd6 {[%clk 0:02:52]} 13. Nxd6+ {[%clk 0:02:41]}  Kf8 {[%clk 0:02:53]} 14. Nxb7 {[%clk 0:02:40]}  Qc7 {[%clk 0:02:53]} 15. e5 {[%clk 0:02:29]}  Qxb7 {[%clk 0:02:46]} 16. Be4 {[%clk 0:02:29]}  Qa7 {[%clk 0:02:39]} 17. Bxa8 {[%clk 0:02:29]}  Qxa8 {[%clk 0:02:40]} 18. Nd2 {[%clk 0:02:25]}  Ng6 {[%clk 0:02:31]} 19. Ne4 {[%clk 0:02:24]}  Ke7 {[%clk 0:02:24]} 20. Re3 {[%clk 0:02:16]}  Rd8 {[%clk 0:02:10]} 21. Qg4 {[%clk 0:01:55]}  Kf8 {[%clk 0:02:06]} 22. g3 {[%clk 0:01:44]}  Qd5 {[%clk 0:01:55]} 23. h4 {[%clk 0:01:36]}  gxh4 {[%clk 0:01:49]} 24. gxh4 {[%clk 0:01:36]}  Ne7 {[%clk 0:00:50]} 25. Ng3 {[%clk 0:01:27]}  Bh8 {[%clk 0:00:35]} 26. b3 {[%clk 0:01:25]}  b5 {[%clk 0:00:25]} 27. Kh2 {[%clk 0:01:16]}  f5 {[%clk 0:00:16]} 28. exf6 {[%clk 0:01:13]}  Nxf6 {[%clk 0:00:16]} 29. Qxe6 {[%clk 0:01:09]}  Qxe6 {[%clk 0:00:10]} 30. Rxe6 {[%clk 0:01:09]}  Ned5 {[%clk 0:00:09]} 31. Rc1 {[%clk 0:00:56]}  a5 {[%clk 0:00:07]} 32. f3 {[%clk 0:00:54]}  b4 {[%clk 0:00:07]} 33. cxb4 {[%clk 0:00:53]}  axb4 {[%clk 0:00:06]} 34. Ra6 {[%clk 0:00:52]}  Nc3 {[%clk 0:00:04]} 35. Nf5 {[%clk 0:00:49]}  h5 {[%clk 0:00:03]} 36. Rg1 {[%clk 0:00:48]}  Nfd5 {[%clk 0:00:01]} 37. Rh6 {[%clk 0:00:45]}  Bf6 {[%clk 0:00:01]} 38. Rgg6 {[%clk 0:00:43]}  Kf7 {[%clk 0:00:01]} 39. Rg1 {[%clk 0:00:41]} 1-0


[Site "https://www.chess.com"]

[Event "Late Titled Tuesday Blitz February 8 2022"]
[White "Cunha, Lucas Aguiar"]
[Black "Okike, David"]
[WhiteFideId "2125404"]
[BlackFideId "8500134"]
[WhiteElo "2361"]
[BlackElo "2232"]
[Result "1-0"]
[Round "08"]
[TimeControl "180+1"]
[Date "2022.02.09"]
[WhiteClock "0:00:10"]
[BlackClock "0:00:27"]

1. e4 {[%clk 0:02:59]}  c5 {[%clk 0:02:56]} 2. Nf3 {[%clk 0:03:00]}  Nc6 {[%clk 0:02:55]} 3. Nc3 {[%clk 0:02:59]}  Nf6 {[%clk 0:02:54]} 4. e5 {[%clk 0:02:59]}  Ng4 {[%clk 0:02:54]} 5. Qe2 {[%clk 0:02:57]}  g6 {[%clk 0:02:54]} 6. h3 {[%clk 0:02:55]}  Nh6 {[%clk 0:02:54]} 7. Ne4 {[%clk 0:02:56]}  b6 {[%clk 0:02:44]} 8. c3 {[%clk 0:02:43]}  Bg7 {[%clk 0:02:44]} 9. Nf6+ {[%clk 0:02:43]}  exf6 {[%clk 0:02:42]} 10. exf6+ {[%clk 0:02:44]}  Kf8 {[%clk 0:02:42]} 11. fxg7+ {[%clk 0:02:43]}  Kxg7 {[%clk 0:02:43]} 12. Qd3 {[%clk 0:02:30]}  Re8+ {[%clk 0:02:42]} 13. Be2 {[%clk 0:02:28]}  Qe7 {[%clk 0:02:37]} 14. Kd1 {[%clk 0:02:18]}  d5 {[%clk 0:02:36]} 15. Re1 {[%clk 0:02:16]}  Be6 {[%clk 0:02:36]} 16. Qb5 {[%clk 0:02:13]}  Qd6 {[%clk 0:02:29]} 17. d3 {[%clk 0:02:03]}  Nf5 {[%clk 0:02:26]} 18. Qa4 {[%clk 0:01:59]}  a6 {[%clk 0:02:13]} 19. Bf4 {[%clk 0:01:54]}  Qd7 {[%clk 0:02:13]} 20. Qb3 {[%clk 0:01:45]}  b5 {[%clk 0:02:12]} 21. Qc2 {[%clk 0:01:42]}  f6 {[%clk 0:02:11]} 22. Qd2 {[%clk 0:01:33]}  g5 {[%clk 0:02:07]} 23. Bh2 {[%clk 0:01:33]}  h6 {[%clk 0:02:05]} 24. Kc2 {[%clk 0:01:01]}  Rac8 {[%clk 0:02:04]} 25. Rac1 {[%clk 0:00:54]}  d4 {[%clk 0:02:03]} 26. Kb1 {[%clk 0:00:46]}  Qd8 {[%clk 0:01:52]} 27. g4 {[%clk 0:00:37]}  Nd6 {[%clk 0:01:49]} 28. cxd4 {[%clk 0:00:32]}  Nxd4 {[%clk 0:01:41]} 29. Nxd4 {[%clk 0:00:31]}  cxd4 {[%clk 0:01:41]} 30. Qb4 {[%clk 0:00:22]}  Nb7 {[%clk 0:01:36]} 31. Bf3 {[%clk 0:00:20]}  Rxc1+ {[%clk 0:01:33]} 32. Rxc1 {[%clk 0:00:21]}  Re7 {[%clk 0:01:19]} 33. b3 {[%clk 0:00:13]}  Rd7 {[%clk 0:01:12]} 34. Be4 {[%clk 0:00:13]}  Nd6 {[%clk 0:01:06]} 35. Bc6 {[%clk 0:00:11]}  a5 {[%clk 0:01:02]} 36. Qxd4 {[%clk 0:00:11]}  Rc7 {[%clk 0:00:56]} 37. Qxd6 {[%clk 0:00:11]}  Qc8 {[%clk 0:00:50]} 38. Qxc7+ {[%clk 0:00:11]}  Qxc7 {[%clk 0:00:50]} 39. Bxc7 {[%clk 0:00:11]}  a4 {[%clk 0:00:48]} 40. bxa4 {[%clk 0:00:12]}  bxa4 {[%clk 0:00:48]} 41. Bxa4 {[%clk 0:00:13]}  f5 {[%clk 0:00:48]} 42. Bb3 {[%clk 0:00:12]}  Bd7 {[%clk 0:00:46]} 43. Be5+ {[%clk 0:00:12]}  Kg6 {[%clk 0:00:45]} 44. Rc7 {[%clk 0:00:12]}  Bb5 {[%clk 0:00:44]} 45. Kc2 {[%clk 0:00:10]}  fxg4 {[%clk 0:00:44]} 46. hxg4 {[%clk 0:00:11]}  h5 {[%clk 0:00:45]} 47. gxh5+ {[%clk 0:00:11]}  Kxh5 {[%clk 0:00:44]} 48. Be6 {[%clk 0:00:10]}  g4 {[%clk 0:00:44]} 49. Bf5 {[%clk 0:00:09]}  Kg5 {[%clk 0:00:44]} 50. Be4 {[%clk 0:00:10]}  Ba4+ {[%clk 0:00:40]} 51. Kc3 {[%clk 0:00:10]}  Bd1 {[%clk 0:00:41]} 52. Rg7+ {[%clk 0:00:10]}  Kh6 {[%clk 0:00:40]} 53. Rg8 {[%clk 0:00:10]}  Kh5 {[%clk 0:00:38]} 54. Bf4 {[%clk 0:00:10]}  g3 {[%clk 0:00:36]} 55. fxg3 {[%clk 0:00:09]}  Be2 {[%clk 0:00:34]} 56. g4+ {[%clk 0:00:09]}  Kh4 {[%clk 0:00:33]} 57. g5 {[%clk 0:00:09]}  Bh5 {[%clk 0:00:32]} 58. g6 {[%clk 0:00:09]}  Kg4 {[%clk 0:00:32]} 59. Be5 {[%clk 0:00:09]}  Kg5 {[%clk 0:00:29]} 60. g7 {[%clk 0:00:10]}  Bf7 {[%clk 0:00:29]} 61. Rf8 {[%clk 0:00:10]}  Bxa2 {[%clk 0:00:29]} 62. g8=Q+ {[%clk 0:00:10]}  Bxg8 {[%clk 0:00:30]} 63. Rxg8+ {[%clk 0:00:11]}  Kh6 {[%clk 0:00:30]} 64. Bf4+ {[%clk 0:00:09]}  Kh5 {[%clk 0:00:29]} 65. Bf3+ {[%clk 0:00:09]}  Kh4 {[%clk 0:00:27]} 66. Rh8# {[%clk 0:00:10]} 1-0


[Site "https://www.chess.com"]

[Event "Late Titled Tuesday Blitz February 8 2022"]
[White "Daggupati, Balaji"]
[Black "Romanchuk, Viktor"]
[WhiteFideId "2090759"]
[BlackFideId "14109271"]
[WhiteElo "2735"]
[BlackElo "2242"]
[Result "1-0"]
[Round "08"]
[TimeControl "180+1"]
[Date "2022.02.08"]
[WhiteClock "0:00:21"]
[BlackClock "0:00:01"]

1. e4 {[%clk 0:03:00]}  e6 {[%clk 0:02:59]} 2. d4 {[%clk 0:03:00]}  d5 {[%clk 0:02:59]} 3. Nc3 {[%clk 0:03:00]}  dxe4 {[%clk 0:03:00]} 4. Nxe4 {[%clk 0:03:01]}  Nd7 {[%clk 0:03:00]} 5. Nf3 {[%clk 0:02:59]}  Ngf6 {[%clk 0:03:00]} 6. Bg5 {[%clk 0:02:59]}  h6 {[%clk 0:03:00]} 7. Nxf6+ {[%clk 0:02:58]}  Nxf6 {[%clk 0:03:01]} 8. Bxf6 {[%clk 0:02:59]}  gxf6 {[%clk 0:03:01]} 9. Bc4 {[%clk 0:02:55]}  Qd6 {[%clk 0:03:00]} 10. Qe2 {[%clk 0:02:55]}  Bd7 {[%clk 0:03:00]} 11. O-O-O {[%clk 0:02:51]}  O-O-O {[%clk 0:02:59]} 12. d5 {[%clk 0:02:39]}  e5 {[%clk 0:02:34]} 13. Rhe1 {[%clk 0:02:38]}  Bg7 {[%clk 0:02:29]} 14. Bb3 {[%clk 0:02:33]}  Rde8 {[%clk 0:02:26]} 15. Nd2 {[%clk 0:02:33]}  f5 {[%clk 0:02:22]} 16. Nc4 {[%clk 0:02:32]}  Qc5 {[%clk 0:02:21]} 17. Qh5 {[%clk 0:02:25]}  Rhf8 {[%clk 0:02:15]} 18. f4 {[%clk 0:02:20]}  e4 {[%clk 0:02:11]} 19. Ne3 {[%clk 0:02:20]}  a5 {[%clk 0:01:38]} 20. a4 {[%clk 0:02:16]}  Bd4 {[%clk 0:01:28]} 21. Nxf5 {[%clk 0:02:12]}  Bf2 {[%clk 0:01:28]} 22. Re2 {[%clk 0:02:08]}  e3 {[%clk 0:01:28]} 23. Nd4 {[%clk 0:01:56]}  Re4 {[%clk 0:01:19]} 24. c3 {[%clk 0:01:48]}  Rxf4 {[%clk 0:00:59]} 25. Qxh6 {[%clk 0:01:45]}  Rg4 {[%clk 0:00:58]} 26. d6 {[%clk 0:01:36]}  Rd8 {[%clk 0:00:43]} 27. dxc7 {[%clk 0:01:36]}  Kxc7 {[%clk 0:00:42]} 28. Qf6 {[%clk 0:01:30]}  Rxg2 {[%clk 0:00:23]} 29. Nb5+ {[%clk 0:01:22]}  Kc8 {[%clk 0:00:19]} 30. Nd6+ {[%clk 0:01:16]}  Kc7 {[%clk 0:00:19]} 31. Qf4 {[%clk 0:01:17]}  Rg4 {[%clk 0:00:17]} 32. Nb5+ {[%clk 0:00:53]}  Kc8 {[%clk 0:00:16]} 33. Qf6 {[%clk 0:00:54]}  Rg6 {[%clk 0:00:12]} 34. Qxf7 {[%clk 0:00:52]}  Rc6 {[%clk 0:00:10]} 35. Qf4 {[%clk 0:00:41]}  Be6 {[%clk 0:00:05]} 36. Rxd8+ {[%clk 0:00:40]}  Kxd8 {[%clk 0:00:06]} 37. Bxe6 {[%clk 0:00:36]}  Rxe6 {[%clk 0:00:05]} 38. Qb8+ {[%clk 0:00:35]}  Ke7 {[%clk 0:00:05]} 39. Qxb7+ {[%clk 0:00:35]}  Kf6 {[%clk 0:00:05]} 40. Nd4 {[%clk 0:00:33]}  Rb6 {[%clk 0:00:04]} 41. Qf3+ {[%clk 0:00:32]}  Ke7 {[%clk 0:00:04]} 42. Qe4+ {[%clk 0:00:32]}  Kd7 {[%clk 0:00:03]} 43. Qh7+ {[%clk 0:00:31]}  Ke8 {[%clk 0:00:03]} 44. Qg8+ {[%clk 0:00:29]}  Kd7 {[%clk 0:00:03]} 45. Qf7+ {[%clk 0:00:25]}  Kc8 {[%clk 0:00:03]} 46. Rxf2 {[%clk 0:00:23]}  exf2 {[%clk 0:00:03]} 47. Qxf2 {[%clk 0:00:24]}  Rd6 {[%clk 0:00:03]} 48. Qf8+ {[%clk 0:00:23]}  Kb7 {[%clk 0:00:02]} 49. Qf3+ {[%clk 0:00:22]}  Kc8 {[%clk 0:00:02]} 50. Qa8+ {[%clk 0:00:22]}  Kd7 {[%clk 0:00:03]} 51. Qb7+ {[%clk 0:00:22]}  Qc7 {[%clk 0:00:03]} 52. Qb5+ {[%clk 0:00:22]}  Kd8 {[%clk 0:00:02]} 53. Qg5+ {[%clk 0:00:21]}  Qe7 {[%clk 0:00:01]} 54. Qxe7+ {[%clk 0:00:20]}  Kxe7 {[%clk 0:00:01]} 55. Nf5+ {[%clk 0:00:21]} 1-0


[Site "https://www.chess.com"]

[Event "Late Titled Tuesday Blitz February 8 2022"]
[White "Dias, Joao Batista"]
[Black "Rudzinska, Michalina"]
[WhiteFideId "2108240"]
[BlackFideId "1172883"]
[WhiteElo "1898"]
[BlackElo "1904"]
[Result "1-0"]
[Round "08"]
[TimeControl "180+1"]
[Date "2022.02.09"]
[WhiteClock "0:00:48"]
[BlackClock "0:00:19"]

1. e4 {[%clk 0:03:00]}  f6 {[%clk 0:02:56]} 2. d4 {[%clk 0:02:59]}  e6 {[%clk 0:02:54]} 3. Nf3 {[%clk 0:02:57]}  Ne7 {[%clk 0:02:54]} 4. Bd3 {[%clk 0:02:56]}  d5 {[%clk 0:02:54]} 5. Nc3 {[%clk 0:02:53]}  b6 {[%clk 0:02:50]} 6. O-O {[%clk 0:02:53]}  Bb7 {[%clk 0:02:50]} 7. Re1 {[%clk 0:02:52]}  dxe4 {[%clk 0:02:46]} 8. Nxe4 {[%clk 0:02:52]}  Qd7 {[%clk 0:02:43]} 9. c4 {[%clk 0:02:44]}  Nbc6 {[%clk 0:02:36]} 10. Be3 {[%clk 0:02:43]}  O-O-O {[%clk 0:02:35]} 11. Qa4 {[%clk 0:02:33]}  Kb8 {[%clk 0:02:33]} 12. Rad1 {[%clk 0:02:32]}  Nxd4 {[%clk 0:02:31]} 13. Qxd7 {[%clk 0:02:31]}  Nxf3+ {[%clk 0:02:31]} 14. gxf3 {[%clk 0:02:31]}  Rxd7 {[%clk 0:02:32]} 15. c5 {[%clk 0:02:30]}  Nf5 {[%clk 0:02:26]} 16. cxb6 {[%clk 0:02:28]}  axb6 {[%clk 0:02:26]} 17. Bb5 {[%clk 0:02:23]}  Rxd1 {[%clk 0:02:22]} 18. Rxd1 {[%clk 0:02:23]}  Nd6 {[%clk 0:02:12]} 19. Nxd6 {[%clk 0:02:15]}  Bxd6 {[%clk 0:02:13]} 20. Bd7 {[%clk 0:02:14]}  Bxf3 {[%clk 0:02:04]} 21. Rc1 {[%clk 0:02:11]}  e5 {[%clk 0:01:59]} 22. h4 {[%clk 0:02:01]}  Rd8 {[%clk 0:01:58]} 23. Be6 {[%clk 0:01:52]}  g6 {[%clk 0:01:57]} 24. a3 {[%clk 0:01:48]}  f5 {[%clk 0:01:57]} 25. Kf1 {[%clk 0:01:46]}  f4 {[%clk 0:01:57]} 26. Bd2 {[%clk 0:01:44]}  Bc5 {[%clk 0:01:57]} 27. Bc3 {[%clk 0:01:42]}  e4 {[%clk 0:01:55]} 28. b4 {[%clk 0:01:38]}  Be7 {[%clk 0:01:52]} 29. Be5 {[%clk 0:01:37]}  Bd6 {[%clk 0:01:42]} 30. Bf6 {[%clk 0:01:37]}  Re8 {[%clk 0:01:40]} 31. Bd5 {[%clk 0:01:34]}  Rf8 {[%clk 0:01:28]} 32. Bg5 {[%clk 0:01:31]}  Rf5 {[%clk 0:01:18]} 33. Be6 {[%clk 0:01:27]}  Re5 {[%clk 0:01:14]} 34. Bb3 {[%clk 0:01:21]}  Re8 {[%clk 0:01:05]} 35. Bf7 {[%clk 0:01:19]}  Rf8 {[%clk 0:01:04]} 36. Bd5 {[%clk 0:01:19]}  Rf5 {[%clk 0:01:02]} 37. Be6 {[%clk 0:01:18]}  Re5 {[%clk 0:01:01]} 38. Bb3 {[%clk 0:01:17]}  Be7 {[%clk 0:01:00]} 39. Bxf4 {[%clk 0:01:16]}  Rf5 {[%clk 0:00:54]} 40. Bxc7+ {[%clk 0:01:13]}  Kb7 {[%clk 0:00:55]} 41. Bg3 {[%clk 0:01:09]}  e3 {[%clk 0:00:51]} 42. Rc7+ {[%clk 0:01:09]}  Ka8 {[%clk 0:00:49]} 43. Rxe7 {[%clk 0:01:09]}  e2+ {[%clk 0:00:43]} 44. Rxe2 {[%clk 0:01:08]}  Bxe2+ {[%clk 0:00:43]} 45. Kxe2 {[%clk 0:01:08]}  g5 {[%clk 0:00:40]} 46. Be6 {[%clk 0:01:00]}  Rf6 {[%clk 0:00:30]} 47. Bd5+ {[%clk 0:00:59]}  Ka7 {[%clk 0:00:31]} 48. hxg5 {[%clk 0:01:00]}  Rf5 {[%clk 0:00:31]} 49. Be4 {[%clk 0:00:55]}  Rxg5 {[%clk 0:00:30]} 50. Bxh7 {[%clk 0:00:55]}  Ka6 {[%clk 0:00:30]} 51. Bd3+ {[%clk 0:00:54]}  b5 {[%clk 0:00:28]} 52. Bf4 {[%clk 0:00:53]}  Rg4 {[%clk 0:00:28]} 53. Be3 {[%clk 0:00:53]}  Rh4 {[%clk 0:00:23]} 54. a4 {[%clk 0:00:53]}  Rxb4 {[%clk 0:00:22]} 55. axb5+ {[%clk 0:00:53]}  Kb7 {[%clk 0:00:22]} 56. f4 {[%clk 0:00:52]}  Kc7 {[%clk 0:00:23]} 57. f5 {[%clk 0:00:52]}  Kd7 {[%clk 0:00:23]} 58. Kf3 {[%clk 0:00:51]}  Ke7 {[%clk 0:00:23]} 59. b6 {[%clk 0:00:50]}  Kd7 {[%clk 0:00:24]} 60. Be4 {[%clk 0:00:48]}  Kd8 {[%clk 0:00:21]} 61. b7 {[%clk 0:00:49]}  Kc7 {[%clk 0:00:21]} 62. Bf4+ {[%clk 0:00:48]}  Kd7 {[%clk 0:00:19]} 63. b8=Q {[%clk 0:00:48]} 1-0


[Site "https://www.chess.com"]

[Event "Late Titled Tuesday Blitz February 8 2022"]
[White "Domingo Nunez, Alejandro"]
[Black "Ladan, Nicholas"]
[WhiteFideId "22245561"]
[BlackFideId "30918855"]
[WhiteElo "2215"]
[BlackElo "2305"]
[Result "0-1"]
[Round "08"]
[TimeControl "180+1"]
[Date "2022.02.09"]
[WhiteClock "0:00:02"]
[BlackClock "0:00:16"]

1. Nf3 {[%clk 0:03:00]}  d5 {[%clk 0:03:00]} 2. g3 {[%clk 0:02:59]}  Nf6 {[%clk 0:03:00]} 3. Bg2 {[%clk 0:02:59]}  Bf5 {[%clk 0:02:59]} 4. O-O {[%clk 0:02:59]}  e6 {[%clk 0:03:00]} 5. d3 {[%clk 0:03:00]}  Be7 {[%clk 0:02:59]} 6. Nbd2 {[%clk 0:02:59]}  h6 {[%clk 0:03:00]} 7. b3 {[%clk 0:02:59]}  O-O {[%clk 0:03:00]} 8. Bb2 {[%clk 0:03:00]}  a5 {[%clk 0:03:00]} 9. a4 {[%clk 0:02:55]}  Na6 {[%clk 0:03:00]} 10. Ne5 {[%clk 0:02:55]}  Nb4 {[%clk 0:02:56]} 11. e4 {[%clk 0:02:52]}  Bh7 {[%clk 0:02:54]} 12. Rc1 {[%clk 0:02:49]}  Na2 {[%clk 0:02:50]} 13. Ra1 {[%clk 0:02:47]}  Nb4 {[%clk 0:02:51]} 14. f4 {[%clk 0:02:32]}  c6 {[%clk 0:02:42]} 15. Kh1 {[%clk 0:02:30]}  Qc7 {[%clk 0:02:36]} 16. c3 {[%clk 0:01:53]}  Na6 {[%clk 0:02:34]} 17. Qe2 {[%clk 0:01:54]}  Rad8 {[%clk 0:02:32]} 18. Rae1 {[%clk 0:01:37]}  Nc5 {[%clk 0:02:27]} 19. Ba3 {[%clk 0:01:08]}  dxe4 {[%clk 0:01:58]} 20. dxe4 {[%clk 0:01:06]}  Nxb3 {[%clk 0:01:40]} 21. Nxb3 {[%clk 0:00:32]}  Bxa3 {[%clk 0:01:40]} 22. Nc4 {[%clk 0:00:27]}  Be7 {[%clk 0:01:33]} 23. Ncxa5 {[%clk 0:00:26]}  Ra8 {[%clk 0:01:30]} 24. Ra1 {[%clk 0:00:26]}  Rxa5 {[%clk 0:01:29]} 25. Nxa5 {[%clk 0:00:22]}  Qxa5 {[%clk 0:01:30]} 26. Rfb1 {[%clk 0:00:22]}  Qxc3 {[%clk 0:01:23]} 27. Ra2 {[%clk 0:00:18]}  Rd8 {[%clk 0:00:56]} 28. Rc2 {[%clk 0:00:16]}  Qd4 {[%clk 0:00:50]} 29. Rc4 {[%clk 0:00:11]}  Qd7 {[%clk 0:00:48]} 30. h3 {[%clk 0:00:11]}  Ne8 {[%clk 0:00:40]} 31. Kh2 {[%clk 0:00:10]}  Nd6 {[%clk 0:00:36]} 32. Rd4 {[%clk 0:00:11]}  Qc7 {[%clk 0:00:36]} 33. Rbd1 {[%clk 0:00:10]}  Ne8 {[%clk 0:00:28]} 34. Rxd8 {[%clk 0:00:10]}  Bxd8 {[%clk 0:00:29]} 35. Qd3 {[%clk 0:00:10]}  Be7 {[%clk 0:00:28]} 36. Qc3 {[%clk 0:00:06]}  Kf8 {[%clk 0:00:26]} 37. e5 {[%clk 0:00:04]}  Bf5 {[%clk 0:00:20]} 38. a5 {[%clk 0:00:04]}  Bd8 {[%clk 0:00:18]} 39. Qc5+ {[%clk 0:00:02]}  Be7 {[%clk 0:00:18]} 40. Qa7 {[%clk 0:00:02]}  Bb4 {[%clk 0:00:16]} 0-1


[Site "https://www.chess.com"]

[Event "Late Titled Tuesday Blitz February 8 2022"]
[White "Fier, Alexandr"]
[Black "Taichman, Ori"]
[WhiteFideId "2107139"]
[BlackFideId "2804069"]
[WhiteElo "2569"]
[BlackElo "2227"]
[Result "1-0"]
[Round "08"]
[TimeControl "180+1"]
[Date "2022.02.08"]
[WhiteClock "0:01:48"]
[BlackClock "0:00:06"]

1. d4 {[%clk 0:03:00]}  Nf6 {[%clk 0:02:59]} 2. Bg5 {[%clk 0:03:00]}  Ne4 {[%clk 0:02:59]} 3. h4 {[%clk 0:03:01]}  c5 {[%clk 0:02:58]} 4. dxc5 {[%clk 0:03:01]}  Qa5+ {[%clk 0:02:50]} 5. Nd2 {[%clk 0:03:01]}  Nxc5 {[%clk 0:02:47]} 6. c3 {[%clk 0:02:57]}  Ne6 {[%clk 0:02:23]} 7. Ngf3 {[%clk 0:02:57]}  Nc6 {[%clk 0:02:18]} 8. e4 {[%clk 0:02:56]}  d6 {[%clk 0:02:10]} 9. Be3 {[%clk 0:02:55]}  Bd7 {[%clk 0:02:04]} 10. Bc4 {[%clk 0:02:55]}  g6 {[%clk 0:01:54]} 11. h5 {[%clk 0:02:55]}  gxh5 {[%clk 0:01:50]} 12. b4 {[%clk 0:02:54]}  Qc7 {[%clk 0:01:48]} 13. Rxh5 {[%clk 0:02:54]}  Bg7 {[%clk 0:01:46]} 14. Qb3 {[%clk 0:02:54]}  a5 {[%clk 0:01:32]} 15. Rc1 {[%clk 0:02:48]}  a4 {[%clk 0:01:28]} 16. Qd1 {[%clk 0:02:46]}  Ne5 {[%clk 0:01:20]} 17. Bd5 {[%clk 0:02:46]}  Nd3+ {[%clk 0:01:19]} 18. Kf1 {[%clk 0:02:45]}  Nxc1 {[%clk 0:01:17]} 19. Qxc1 {[%clk 0:02:46]}  Qxc3 {[%clk 0:01:15]} 20. Qd1 {[%clk 0:02:46]}  Qxb4 {[%clk 0:01:14]} 21. Kg1 {[%clk 0:02:43]}  Rc8 {[%clk 0:01:08]} 22. Qe2 {[%clk 0:02:38]}  Bb5 {[%clk 0:01:00]} 23. Qd1 {[%clk 0:02:38]}  Bc6 {[%clk 0:00:59]} 24. Bxe6 {[%clk 0:02:35]}  fxe6 {[%clk 0:01:00]} 25. Ng5 {[%clk 0:02:35]}  Bd7 {[%clk 0:00:49]} 26. Qg4 {[%clk 0:02:33]}  Rc1+ {[%clk 0:00:14]} 27. Kh2 {[%clk 0:02:32]}  Be5+ {[%clk 0:00:14]} 28. f4 {[%clk 0:02:32]}  Bd4 {[%clk 0:00:13]} 29. Nxh7 {[%clk 0:01:53]}  Kd8 {[%clk 0:00:11]} 30. Bxd4 {[%clk 0:01:48]}  Qxd4 {[%clk 0:00:11]} 31. Nf3 {[%clk 0:01:49]}  Qd1 {[%clk 0:00:10]} 32. Qg7 {[%clk 0:01:48]}  Rxh7 {[%clk 0:00:07]} 33. Rxh7 {[%clk 0:01:48]}  a3 {[%clk 0:00:04]} 34. Qxe7+ {[%clk 0:01:47]}  Kc7 {[%clk 0:00:05]} 35. Qxd7+ {[%clk 0:01:48]}  Kb6 {[%clk 0:00:05]} 36. Qxb7+ {[%clk 0:01:48]}  Kc5 {[%clk 0:00:06]} 37. Rc7# {[%clk 0:01:48]} 1-0


[Site "https://www.chess.com"]